[Event "NJSK 2022 Meisjes A&B"]
[Site "Almelo, Netherlands"]
[Date "2022.05.03"]
[Round "3.7"]
[White "Jonkman, Amelia"]
[Black "Wortman, Manixia"]
[Result "1-0"]
[TimeControl "90min/40moves + 30min + 30sec/move"]
[WhiteElo "1552"]
[BlackElo "1432"]

1. d4 {[%clk 01:30:58]} {[%emt 00:00:01]} Nf6 {[%clk 01:30:55]} {[%emt
00:00:05]} 2. c4 {[%clk 01:31:19]} {[%emt 00:00:10]} e6 {[%clk 01:31:20]}
{[%emt 00:00:05]} 3. Nc3 {[%clk 01:31:41]} {[%emt 00:00:08]} Bb4 {[%clk
01:31:40]} {[%emt 00:00:10]} 4. Nf3 {[%clk 01:31:38]} {[%emt 00:00:33]} b6
{[%clk 01:32:01]} {[%emt 00:00:09]} 5. Bg5 {[%clk 01:29:22]} {[%emt 00:02:46]}
Bb7 {[%clk 01:32:04]} {[%emt 00:00:27]} 6. e3 {[%clk 01:27:30]} {[%emt
00:02:22]} h6 {[%clk 01:31:42]} {[%emt 00:00:52]} 7. Bh4 {[%clk 01:27:28]}
{[%emt 00:00:33]} O-O {[%clk 01:31:19]} {[%emt 00:00:53]} 8. Be2 {[%clk
01:26:58]} {[%emt 00:01:00]} d6 {[%clk 01:28:55]} {[%emt 00:02:54]} 9. O-O
{[%clk 01:24:48]} {[%emt 00:02:39]} Bxc3 {[%clk 01:29:04]} {[%emt 00:00:21]} 10.
bxc3 {[%clk 01:24:52]} {[%emt 00:00:27]} Nbd7 {[%clk 01:29:23]} {[%emt
00:00:11]} 11. Qb3 {[%clk 01:16:12]} {[%emt 00:09:09]} c5 {[%clk 01:27:25]}
{[%emt 00:02:29]} 12. Rfd1 {[%clk 01:09:36]} {[%emt 00:07:06]} d5 {[%clk
01:20:54]} {[%emt 00:07:01]} 13. Rac1 {[%clk 01:00:21]} {[%emt 00:09:44]} Qc7
{[%clk 01:20:05]} {[%emt 00:01:19]} 14. cxd5 {[%clk 00:59:19]} {[%emt
00:01:32]} Bxd5 {[%clk 01:14:20]} {[%emt 00:06:15]} 15. c4 {[%clk 00:58:57]}
{[%emt 00:00:53]} Bb7 {[%clk 01:13:35]} {[%emt 00:01:14]} 16. d5 {[%clk
00:52:14]} {[%emt 00:07:13]} Qd6 {[%clk 01:11:51]} {[%emt 00:02:14]} 17. Bg3
{[%clk 00:46:09]} {[%emt 00:06:35]} e5 {[%clk 01:08:10]} {[%emt 00:04:11]} 18.
Bd3 {[%clk 00:39:07]} {[%emt 00:07:33]} Rfe8 {[%clk 01:06:30]} {[%emt
00:02:10]} 19. h3 {[%clk 00:36:04]} {[%emt 00:03:33]} Qf8 {[%clk 01:03:24]}
{[%emt 00:03:36]} 20. e4 {[%clk 00:34:13]} {[%emt 00:02:21]} Nh5 {[%clk
00:59:01]} {[%emt 00:04:53]} 21. Bh2 {[%clk 00:32:28]} {[%emt 00:02:15]} f5
{[%clk 00:58:39]} {[%emt 00:00:53]} 22. Re1 {[%clk 00:26:14]} {[%emt 00:06:44]}
fxe4 {[%clk 00:55:32]} {[%emt 00:03:36]} 23. Rxe4 {[%clk 00:25:04]} {[%emt
00:01:41]} Nhf6 {[%clk 00:51:01]} {[%emt 00:05:01]} 24. Rxe5 {[%clk 00:16:19]}
{[%emt 00:09:15]} Nxe5 {[%clk 00:51:19]} {[%emt 00:00:11]} 25. Nxe5 {[%clk
00:14:53]} {[%emt 00:01:57]} g5 {[%clk 00:39:48]} {[%emt 00:12:01]} 26. a4
{[%clk 00:13:04]} {[%emt 00:02:20]} Bc8 {[%clk 00:36:36]} {[%emt 00:03:42]} 27.
a5 {[%clk 00:10:40]} {[%emt 00:02:53]} Nd7 {[%clk 00:30:10]} {[%emt 00:06:56]}
28. Nxd7 {[%clk 00:10:00]} {[%emt 00:01:10]} Bxd7 {[%clk 00:30:30]} {[%emt
00:00:10]} 29. axb6 {[%clk 00:10:12]} {[%emt 00:00:18]} axb6 {[%clk 00:30:23]}
{[%emt 00:00:37]} 30. Qxb6 {[%clk 00:10:00]} {[%emt 00:00:42]} Ra2 {[%clk
00:29:27]} {[%emt 00:01:26]} 31. f3 {[%clk 00:06:56]} {[%emt 00:03:33]} Qe7
{[%clk 00:27:13]} {[%emt 00:02:44]} 32. Qg6+ {[%clk 00:05:36]} {[%emt
00:01:50]} Qg7 {[%clk 00:27:09]} {[%emt 00:00:34]} 33. Qxg7+ {[%emt 00:02:06]}
Kxg7 {[%clk 00:27:29]} {[%emt 00:00:07]} 34. Bd6 {[%clk 00:04:13]} {[%emt
00:00:21]} Re3 {[%clk 00:27:23]} {[%emt 00:00:35]} 35. Bf1 {[%clk 00:04:05]}
{[%emt 00:00:39]} Ra5 {[%clk 00:26:51]} {[%emt 00:01:01]} 36. Rb1 {[%clk
00:03:11]} {[%emt 00:01:24]} Bf5 {[%clk 00:26:24]} {[%emt 00:00:57]} 37. Rb5
{[%clk 00:02:29]} {[%emt 00:01:12]} Ra1 {[%clk 00:23:48]} {[%emt 00:03:06]} 38.
Bxc5 {[%clk 00:02:17]} {[%emt 00:00:42]} Ree1 {[%clk 00:23:45]} {[%emt
00:00:33]} 39. Bd4+ {[%clk 00:02:39]} {[%emt 00:00:08]} Kg6 {[%clk 00:23:57]}
{[%emt 00:00:52]} 40. Bxa1 {[%clk 00:03:27]} {[%emt 00:00:08]} Rxa1 {[%clk
00:24:15]} {[%emt 00:00:12]} 41. Kf2 {[%clk 00:03:35]} {[%emt 00:00:22]} Rc1
{[%clk 00:23:55]} {[%emt 00:00:50]} 42. d6 {[%clk 00:03:24]} {[%emt 00:00:42]}
Kf6 {[%clk 00:23:30]} {[%emt 00:00:55]} 43. Rd5 {[%clk 00:02:29]} {[%emt
00:01:24]} Bd7 {[%clk 00:22:20]} {[%emt 00:01:40]} 44. c5 {[%clk 00:02:37]}
{[%emt 00:00:23]} Ke6 {[%clk 00:22:28]} {[%emt 00:00:21]} 45. Rd2 {[%clk
00:29:35]} {[%emt 00:03:32]} Rxc5 {[%clk 00:52:25]} {[%emt 00:00:33]} 46. g3
{[%clk 00:28:58]} {[%emt 00:01:07]} Rd5 {[%clk 00:52:34]} {[%emt 00:00:21]} 47.
Bc4 {[%clk 00:29:06]} {[%emt 00:01:32]} 1-0

[Event "NJSK 2022 Meisjes A&B"]
[Site "Almelo, Netherlands"]
[Date "2022.05.04"]
[Round "4.1"]
[White "Cordes, Jule"]
[Black "Verheij, Dana"]
[Result "1-0"]
[TimeControl "90min/40moves + 30min + 30sec/move"]
[WhiteElo "1802"]
[BlackElo "1828"]

1. d4 {[%clk 01:30:58]} {[%emt 00:00:01]} d5 {[%clk 01:30:53]} {[%emt
00:00:07]} 2. c4 {[%clk 01:31:18]} {[%emt 00:00:10]} e6 {[%clk 01:31:06]}
{[%emt 00:00:17]} 3. Nc3 {[%clk 01:31:23]} {[%emt 00:00:25]} a6 {[%clk
01:31:13]} {[%emt 00:00:25]} 4. cxd5 {[%clk 01:31:09]} {[%emt 00:00:44]} exd5
{[%clk 01:31:39]} {[%emt 00:00:04]} 5. Nf3 {[%clk 01:30:15]} {[%emt 00:01:23]}
c6 {[%clk 01:31:29]} {[%emt 00:00:41]} 6. Bg5 {[%clk 01:27:04]} {[%emt
00:03:41]} Nf6 {[%clk 01:28:16]} {[%emt 00:03:43]} 7. e3 {[%clk 01:25:58]}
{[%emt 00:01:36]} Be7 {[%clk 01:27:18]} {[%emt 00:01:28]} 8. Bd3 {[%clk
01:23:26]} {[%emt 00:03:02]} h6 {[%clk 01:26:37]} {[%emt 00:01:10]} 9. Bh4
{[%clk 01:21:53]} {[%emt 00:02:03]} Be6 {[%clk 01:25:11]} {[%emt 00:01:57]} 10.
Qb3 {[%clk 01:18:56]} {[%emt 00:03:28]} b5 {[%clk 01:17:41]} {[%emt 00:08:00]}
11. a4 {[%clk 01:09:46]} {[%emt 00:09:40]} Nbd7 {[%clk 01:05:15]} {[%emt
00:12:56]} 12. axb5 {[%clk 01:05:53]} {[%emt 00:04:23]} axb5 {[%clk 01:05:11]}
{[%emt 00:00:33]} 13. O-O {[%clk 01:03:48]} {[%emt 00:02:35]} O-O {[%clk
01:05:15]} {[%emt 00:00:26]} 14. Rxa8 {[%clk 00:54:19]} {[%emt 00:10:00]} Qxa8
{[%clk 01:05:39]} {[%emt 00:00:06]} 15. Bb1 {[%clk 00:51:52]} {[%emt 00:02:57]}
Rc8 {[%clk 00:51:58]} {[%emt 00:14:11]} 16. Ne5 {[%clk 00:46:40]} {[%emt
00:05:41]} Re8 {[%clk 00:34:47]} {[%emt 00:17:41]} 17. Qc2 {[%clk 00:44:48]}
{[%emt 00:02:22]} Nf8 {[%clk 00:32:53]} {[%emt 00:02:24]} 18. Rc1 {[%clk
00:35:32]} {[%emt 00:09:46]} N6d7 {[%clk 00:29:53]} {[%emt 00:03:31]} 19. Bg3
{[%clk 00:26:06]} {[%emt 00:09:55]} Nxe5 {[%clk 00:27:48]} {[%emt 00:02:36]} 20.
Bxe5 {[%clk 00:26:13]} {[%emt 00:00:23]} Qb7 {[%clk 00:25:37]} {[%emt
00:02:40]} 21. Ne2 {[%clk 00:19:29]} {[%emt 00:07:15]} Rc8 {[%clk 00:22:28]}
{[%emt 00:03:39]} 22. Nf4 {[%clk 00:14:32]} {[%emt 00:05:27]} Qd7 {[%clk
00:18:52]} {[%emt 00:04:05]} 23. Qd3 {[%clk 00:09:28]} {[%emt 00:05:35]} Ra8
{[%clk 00:08:34]} {[%emt 00:10:48]} 24. Nh5 {[%clk 00:08:20]} {[%emt 00:01:37]}
f6 {[%clk 00:08:23]} {[%emt 00:00:41]} 25. Bg3 {[%clk 00:08:09]} {[%emt
00:00:41]} Ra4 {[%clk 00:07:05]} {[%emt 00:01:48]} 26. Nf4 {[%clk 00:06:50]}
{[%emt 00:01:49]} Bf7 {[%clk 00:06:49]} {[%emt 00:00:46]} 27. Qe2 {[%clk
00:05:41]} {[%emt 00:01:39]} Rc4 {[%clk 00:04:13]} {[%emt 00:03:07]} 28. Rd1
{[%clk 00:05:22]} {[%emt 00:00:49]} Ne6 {[%clk 00:03:11]} {[%emt 00:01:32]} 29.
Qd3 {[%clk 00:04:13]} {[%emt 00:01:38]} Nf8 {[%clk 00:03:07]} {[%emt 00:00:34]}
30. b3 {[%clk 00:04:15]} {[%emt 00:00:29]} Rb4 {[%clk 00:03:15]} {[%emt
00:00:22]} 31. Qc3 {[%clk 00:04:22]} {[%emt 00:00:22]} Qg4 {[%clk 00:02:40]}
{[%emt 00:01:05]} 32. f3 {[%clk 00:04:03]} {[%emt 00:00:49]} Qd7 {[%clk
00:02:54]} {[%emt 00:00:16]} 33. Nd3 {[%clk 00:04:10]} {[%emt 00:00:23]} Rc4
{[%clk 00:02:16]} {[%emt 00:01:09]} 34. bxc4 {[%clk 00:04:12]} {[%emt
00:00:28]} dxc4 {[%clk 00:02:42]} {[%emt 00:00:04]} 35. Nf4 {[%clk 00:03:02]}
{[%emt 00:01:40]} b4 {[%clk 00:03:01]} {[%emt 00:00:10]} 36. Qc1 {[%clk
00:02:40]} {[%emt 00:00:52]} Qa7 {[%clk 00:02:20]} {[%emt 00:01:11]} 37. Be4
{[%clk 00:02:37]} {[%emt 00:00:33]} Qb6 {[%clk 00:02:18]} {[%emt 00:00:33]} 38.
d5 {[%clk 00:02:13]} {[%emt 00:00:54]} Bc5 {[%clk 00:02:03]} {[%emt 00:00:44]}
39. Bf2 {[%clk 00:02:34]} {[%emt 00:00:09]} 1-0

[Event "NJSK 2022 Meisjes A&B"]
[Site "Almelo, Netherlands"]
[Date "2022.05.04"]
[Round "4.2"]
[White "Martinez, Sara"]
[Black "Den Heijer, Rolinde"]
[Result "1/2-1/2"]
[TimeControl "90min/40moves + 30min + 30sec/move"]
[WhiteElo "1651"]
[BlackElo "1754"]

1. e4 {[%clk 01:30:58]} {[%emt 00:00:02]} c5 {[%clk 01:30:56]} {[%emt
00:00:04]} 2. Nf3 {[%clk 01:31:25]} {[%emt 00:00:04]} d6 {[%clk 01:31:21]}
{[%emt 00:00:05]} 3. d4 {[%clk 01:31:50]} {[%emt 00:00:04]} cxd4 {[%clk
01:31:47]} {[%emt 00:00:04]} 4. Qxd4 {[%clk 01:32:17]} {[%emt 00:00:03]} Nc6
{[%clk 01:30:32]} {[%emt 00:01:45]} 5. Bb5 {[%clk 01:32:38]} {[%emt 00:00:09]}
Bd7 {[%clk 01:30:01]} {[%emt 00:01:01]} 6. Bxc6 {[%clk 01:33:00]} {[%emt
00:00:08]} bxc6 {[%clk 01:29:49]} {[%emt 00:00:42]} 7. c4 {[%clk 01:29:39]}
{[%emt 00:03:52]} e5 {[%clk 01:23:24]} {[%emt 00:06:55]} 8. Qd3 {[%clk
01:26:56]} {[%emt 00:03:12]} Nf6 {[%clk 01:19:39]} {[%emt 00:04:16]} 9. Nc3
{[%clk 01:25:53]} {[%emt 00:01:32]} c5 {[%clk 01:18:05]} {[%emt 00:02:04]} 10.
Bg5 {[%clk 01:14:30]} {[%emt 00:11:54]} h6 {[%clk 01:10:18]} {[%emt 00:08:16]}
11. Bh4 {[%clk 01:12:57]} {[%emt 00:02:03]} g5 {[%clk 01:08:30]} {[%emt
00:02:18]} 12. Bg3 {[%clk 01:13:05]} {[%emt 00:00:23]} Be6 {[%clk 01:06:42]}
{[%emt 00:02:18]} 13. Rd1 {[%clk 01:06:12]} {[%emt 00:07:23]} a6 {[%clk
01:02:42]} {[%emt 00:04:29]} 14. b3 {[%clk 00:53:52]} {[%emt 00:12:51]} Nh5
{[%clk 00:55:23]} {[%emt 00:07:48]} 15. Nd5 {[%clk 00:40:54]} {[%emt 00:13:28]}
Qa5+ {[%clk 00:47:26]} {[%emt 00:08:27]} 16. Kf1 {[%clk 00:41:06]} {[%emt
00:00:18]} Rd8 {[%clk 00:45:12]} {[%emt 00:02:44]} 17. Ne1 {[%clk 00:36:10]}
{[%emt 00:05:26]} Bg7 {[%clk 00:36:44]} {[%emt 00:08:58]} 18. Nc2 {[%clk
00:33:47]} {[%emt 00:02:54]} O-O {[%clk 00:34:37]} {[%emt 00:02:36]} 19. Nce3
{[%clk 00:32:54]} {[%emt 00:01:24]} f5 {[%clk 00:24:11]} {[%emt 00:10:55]} 20.
Nxf5 {[%clk 00:31:21]} {[%emt 00:02:03]} Qxa2 {[%clk 00:20:20]} {[%emt
00:04:21]} 21. Nde7+ {[%clk 00:26:07]} {[%emt 00:05:45]} Kh7 {[%clk 00:20:19]}
{[%emt 00:00:30]} 22. Qf3 {[%clk 00:16:17]} {[%emt 00:10:20]} Nf6 {[%clk
00:16:20]} {[%emt 00:04:29]} 23. Qe3 {[%clk 00:11:38]} {[%emt 00:05:08]} Qc2
{[%clk 00:10:53]} {[%emt 00:05:59]} 24. Rc1 {[%clk 00:10:35]} {[%emt 00:01:33]}
Qxe4 {[%clk 00:10:22]} {[%emt 00:01:00]} 25. Qxe4 {[%clk 00:09:40]} {[%emt
00:01:26]} Nxe4 {[%clk 00:10:44]} {[%emt 00:00:08]} 26. Nxg7 {[%clk 00:09:30]}
{[%emt 00:00:40]} Kxg7 {[%clk 00:10:47]} {[%emt 00:00:27]} 27. Ke2 {[%clk
00:09:12]} {[%emt 00:00:48]} Rb8 {[%clk 00:10:02]} {[%emt 00:01:15]} 28. f3
{[%clk 00:07:29]} {[%emt 00:02:13]} Nxg3+ {[%clk 00:09:44]} {[%emt 00:00:47]}
29. hxg3 {[%clk 00:07:56]} {[%emt 00:00:04]} Rxb3 {[%clk 00:09:41]} {[%emt
00:00:34]} 30. Rhd1 {[%clk 00:07:40]} {[%emt 00:00:45]} Rd8 {[%clk 00:09:14]}
{[%emt 00:00:56]} 31. Nc6 {[%clk 00:06:33]} {[%emt 00:01:38]} Rd7 {[%clk
00:08:21]} {[%emt 00:01:23]} 32. Rd2 {[%clk 00:06:35]} {[%emt 00:00:28]} Rb6
{[%clk 00:08:01]} {[%emt 00:00:50]} 33. Na5 {[%clk 00:06:21]} {[%emt 00:00:44]}
Rb4 {[%clk 00:07:12]} {[%emt 00:01:18]} 34. Ke3 {[%clk 00:04:50]} {[%emt
00:02:02]} Ra4 {[%clk 00:05:58]} {[%emt 00:01:44]} 35. Nc6 {[%clk 00:05:01]}
{[%emt 00:00:19]} Bxc4 {[%clk 00:04:56]} {[%emt 00:01:33]} 36. Rcd1 {[%clk
00:03:27]} {[%emt 00:02:04]} d5 {[%clk 00:03:08]} {[%emt 00:02:17]} 37. Nxe5
{[%clk 00:03:04]} {[%emt 00:00:53]} Re7 {[%clk 00:03:11]} {[%emt 00:00:27]} 38.
f4 {[%clk 00:03:26]} {[%emt 00:00:08]} Bb3 {[%clk 00:01:40]} {[%emt 00:02:02]}
39. Rc1 {[%clk 00:03:08]} {[%emt 00:00:47]} Rc7 {[%clk 00:01:44]} {[%emt
00:00:25]} 40. Nd3 {[%clk 00:02:34]} {[%emt 00:01:05]} Rc4 {[%clk 00:01:28]}
{[%emt 00:00:46]} 41. Ra1 {[%clk 00:01:38]} {[%emt 00:01:26]} Rc3 {[%clk
00:29:55]} {[%emt 00:02:02]} 42. Kf2 {[%clk 00:29:57]} {[%emt 00:02:11]} Rc2
{[%clk 00:28:05]} {[%emt 00:02:20]} 43. Rxc2 {[%clk 00:28:26]} {[%emt
00:02:02]} Bxc2 {[%clk 00:28:21]} {[%emt 00:00:14]} 44. Ne5 {[%clk 00:28:48]}
{[%emt 00:00:08]} Be4 {[%clk 00:27:24]} {[%emt 00:01:26]} 45. Rxa6 {[%clk
00:28:44]} {[%emt 00:00:35]} c4 {[%clk 00:27:14]} {[%emt 00:00:40]} 46. Ra1
{[%clk 00:25:48]} {[%emt 00:03:26]} c3 {[%clk 00:26:22]} {[%emt 00:01:21]} 47.
Rc1 {[%clk 00:25:59]} {[%emt 00:00:20]} c2 {[%clk 00:26:21]} {[%emt 00:00:31]}
48. Nf3 {[%clk 00:25:17]} {[%emt 00:01:12]} Bh7 {[%clk 00:22:34]} {[%emt
00:04:17]} 49. fxg5 {[%clk 00:23:57]} {[%emt 00:01:50]} Rb7 {[%clk 00:21:39]}
{[%emt 00:01:25]} 50. gxh6+ {[%clk 00:20:10]} {[%emt 00:04:17]} Kxh6 {[%clk
00:18:43]} {[%emt 00:03:26]} 51. Ke2 {[%clk 00:20:28]} {[%emt 00:00:13]} Rb3
{[%clk 00:16:54]} {[%emt 00:02:18]} 52. Nd4 {[%clk 00:16:44]} {[%emt 00:04:14]}
Rxg3 {[%clk 00:14:33]} {[%emt 00:02:50]} 53. Nxc2 {[%clk 00:17:06]} {[%emt
00:00:08]} Rxg2+ {[%clk 00:13:55]} {[%emt 00:01:09]} 54. Kd1 {[%clk 00:17:29]}
{[%emt 00:00:07]} Bxc2+ {[%clk 00:12:53]} {[%emt 00:01:32]} 55. Rxc2 {[%clk
00:17:54]} {[%emt 00:00:05]} Rg7 {[%clk 00:12:52]} {[%emt 00:00:30]} 56. Rh2+
{[%clk 00:16:46]} {[%emt 00:01:39]} Kg5 {[%clk 00:12:46]} {[%emt 00:00:35]} 57.
Rg2+ {[%clk 00:17:13]} {[%emt 00:00:04]} Kf6 {[%clk 00:13:09]} {[%emt
00:00:07]} 58. Rxg7 {[%clk 00:17:30]} {[%emt 00:00:13]} Kxg7 {[%clk 00:13:05]}
{[%emt 00:00:35]} 59. Kd2 {[%clk 00:17:55]} {[%emt 00:00:04]} Kf6 {[%clk
00:13:29]} {[%emt 00:00:06]} 60. Kd3 {[%clk 00:18:16]} {[%emt 00:00:09]} Ke5
{[%clk 00:13:25]} {[%emt 00:00:34]} 61. Ke3 {[%clk 00:18:42]} {[%emt 00:00:04]}
d4+ {[%clk 00:13:30]} {[%emt 00:00:26]} 1/2-1/2

[Event "NJSK 2022 Meisjes A&B"]
[Site "Almelo, Netherlands"]
[Date "2022.05.04"]
[Round "4.3"]
[White "Venema, Katja"]
[Black "Honkoop, Stella"]
[Result "1/2-1/2"]
[TimeControl "90min/40moves + 30min + 30sec/move"]
[WhiteElo "1692"]
[BlackElo "1711"]

1. d4 {[%clk 01:30:54]} {[%emt 00:00:05]} Nf6 {[%clk 01:30:56]} {[%emt
00:00:05]} 2. c4 {[%clk 01:31:14]} {[%emt 00:00:10]} g6 {[%clk 01:31:15]}
{[%emt 00:00:11]} 3. Nc3 {[%clk 01:31:15]} {[%emt 00:00:28]} Bg7 {[%clk
01:31:27]} {[%emt 00:00:19]} 4. e4 {[%clk 01:30:41]} {[%emt 00:01:03]} d6
{[%clk 01:30:44]} {[%emt 00:01:14]} 5. Nf3 {[%clk 01:28:58]} {[%emt 00:02:13]}
O-O {[%clk 01:30:47]} {[%emt 00:00:27]} 6. Be2 {[%clk 01:27:56]} {[%emt
00:01:32]} e5 {[%clk 01:30:30]} {[%emt 00:00:47]} 7. Bg5 {[%clk 01:24:35]}
{[%emt 00:03:51]} Nbd7 {[%clk 01:14:39]} {[%emt 00:16:22]} 8. dxe5 {[%clk
01:17:50]} {[%emt 00:07:14]} dxe5 {[%clk 01:14:31]} {[%emt 00:00:37]} 9. O-O
{[%clk 01:13:30]} {[%emt 00:04:50]} a5 {[%clk 01:12:44]} {[%emt 00:02:18]} 10.
Qc2 {[%clk 01:09:00]} {[%emt 00:04:59]} c6 {[%clk 01:11:22]} {[%emt 00:01:53]}
11. Rad1 {[%clk 01:05:11]} {[%emt 00:04:19]} Qc7 {[%clk 01:11:20]} {[%emt
00:00:31]} 12. Ne1 {[%clk 00:59:29]} {[%emt 00:06:13]} Nc5 {[%clk 01:03:03]}
{[%emt 00:08:48]} 13. Be3 {[%clk 00:55:11]} {[%emt 00:04:46]} Ne6 {[%clk
01:01:07]} {[%emt 00:02:26]} 14. Qc1 {[%clk 00:42:14]} {[%emt 00:13:27]} Re8
{[%clk 00:55:32]} {[%emt 00:06:06]} 15. f3 {[%clk 00:35:35]} {[%emt 00:07:09]}
Nh5 {[%clk 00:44:29]} {[%emt 00:11:32]} 16. Nd3 {[%clk 00:31:45]} {[%emt
00:04:20]} Nef4 {[%clk 00:37:49]} {[%emt 00:07:10]} 17. Nf2 {[%clk 00:27:23]}
{[%emt 00:04:52]} Bd7 {[%clk 00:28:41]} {[%emt 00:09:40]} 18. Rfe1 {[%clk
00:25:27]} {[%emt 00:02:25]} Nxe2+ {[%clk 00:26:47]} {[%emt 00:02:24]} 19. Rxe2
{[%clk 00:25:05]} {[%emt 00:00:51]} f5 {[%clk 00:26:39]} {[%emt 00:00:39]} 20.
Red2 {[%clk 00:22:53]} {[%emt 00:02:41]} Be6 {[%clk 00:26:51]} {[%emt
00:00:19]} 21. Na4 {[%clk 00:21:26]} {[%emt 00:01:56]} f4 {[%clk 00:24:40]}
{[%emt 00:02:42]} 22. Bb6 {[%clk 00:21:22]} {[%emt 00:00:33]} Qf7 {[%clk
00:22:52]} {[%emt 00:02:18]} 23. b3 {[%clk 00:20:22]} {[%emt 00:01:30]} g5
{[%clk 00:19:34]} {[%emt 00:03:48]} 24. Nc5 {[%clk 00:19:18]} {[%emt 00:01:34]}
Nf6 {[%clk 00:18:06]} {[%emt 00:01:59]} 25. Qc3 {[%clk 00:18:08]} {[%emt
00:01:39]} g4 {[%clk 00:17:01]} {[%emt 00:01:35]} 26. Nxe6 {[%clk 00:16:45]}
{[%emt 00:01:54]} Qxe6 {[%clk 00:16:26]} {[%emt 00:01:04]} 27. Rd6 {[%clk
00:16:32]} {[%emt 00:00:44]} Qf7 {[%clk 00:16:39]} {[%emt 00:00:17]} 28. fxg4
{[%clk 00:16:12]} {[%emt 00:00:49]} Bf8 {[%clk 00:16:32]} {[%emt 00:00:38]} 29.
R6d3 {[%clk 00:16:05]} {[%emt 00:00:36]} Bb4 {[%clk 00:15:57]} {[%emt
00:01:05]} 30. Qc2 {[%clk 00:16:06]} {[%emt 00:00:27]} Qg6 {[%clk 00:11:37]}
{[%emt 00:04:53]} 31. Qe2 {[%clk 00:16:05]} {[%emt 00:00:30]} a4 {[%clk
00:08:46]} {[%emt 00:03:22]} 32. c5 {[%clk 00:15:49]} {[%emt 00:00:45]} axb3
{[%clk 00:06:09]} {[%emt 00:03:07]} 33. axb3 {[%clk 00:15:25]} {[%emt
00:00:54]} Ba5 {[%clk 00:06:15]} {[%emt 00:00:25]} 34. Bxa5 {[%clk 00:14:35]}
{[%emt 00:01:20]} Rxa5 {[%clk 00:06:39]} {[%emt 00:00:07]} 35. b4 {[%clk
00:13:34]} {[%emt 00:01:30]} Ra4 {[%clk 00:07:03]} {[%emt 00:00:06]} 36. Qb2
{[%clk 00:13:26]} {[%emt 00:00:37]} Raa8 {[%clk 00:05:34]} {[%emt 00:01:59]} 37.
Rd6 {[%clk 00:13:25]} {[%emt 00:00:32]} Qg7 {[%clk 00:05:24]} {[%emt 00:00:39]}
38. h3 {[%clk 00:13:07]} {[%emt 00:00:48]} Re7 {[%clk 00:03:40]} {[%emt
00:02:15]} 39. Qb3+ {[%clk 00:12:16]} {[%emt 00:01:20]} Kf8 {[%clk 00:02:47]}
{[%emt 00:01:24]} 40. Rd8+ {[%clk 00:11:09]} {[%emt 00:01:36]} Rxd8 {[%clk
00:00:34]} {[%emt 00:02:44]} 41. Rxd8+ {[%clk 00:11:32]} {[%emt 00:00:06]} Ne8
{[%clk 00:24:48]} {[%emt 00:06:17]} 42. Rb8 {[%clk 00:40:31]} {[%emt 00:01:30]}
Rd7 {[%clk 00:21:34]} {[%emt 00:03:45]} 43. b5 {[%clk 00:33:54]} {[%emt
00:07:07]} Qe7 {[%clk 00:19:17]} {[%emt 00:02:47]} 44. bxc6 {[%clk 00:33:10]}
{[%emt 00:01:14]} bxc6 {[%clk 00:19:38]} {[%emt 00:00:09]} 45. Qc3 {[%clk
00:32:30]} {[%emt 00:01:10]} Rd4 {[%clk 00:16:55]} {[%emt 00:03:13]} 46. Rb4
{[%clk 00:25:29]} {[%emt 00:07:31]} Rxb4 {[%clk 00:13:02]} {[%emt 00:04:23]} 47.
Qxb4 {[%clk 00:25:50]} {[%emt 00:00:08]} Nf6 {[%clk 00:13:07]} {[%emt
00:00:26]} 48. Nd3 {[%clk 00:22:26]} {[%emt 00:03:54]} Nd7 {[%clk 00:13:07]}
{[%emt 00:00:30]} 49. Qb7 {[%clk 00:20:09]} {[%emt 00:02:46]} Qe6 {[%clk
00:12:30]} {[%emt 00:01:07]} 50. Qc8+ {[%clk 00:17:22]} {[%emt 00:03:17]} Ke7
{[%clk 00:11:55]} {[%emt 00:01:06]} 51. Nb4 {[%clk 00:14:28]} {[%emt 00:03:24]}
Nxc5 {[%clk 00:08:54]} {[%emt 00:03:31]} 52. Qc7+ {[%clk 00:11:59]} {[%emt
00:02:58]} Nd7 {[%clk 00:04:06]} {[%emt 00:05:19]} 53. Nxc6+ {[%clk 00:11:35]}
{[%emt 00:00:53]} Kf6 {[%clk 00:03:53]} {[%emt 00:00:40]} 54. Nb4 {[%clk
00:09:51]} {[%emt 00:02:17]} Qb6+ {[%clk 00:03:52]} {[%emt 00:00:32]} 55. Qxb6+
{[%clk 00:09:59]} {[%emt 00:00:22]} Nxb6 {[%clk 00:04:20]} {[%emt 00:00:01]} 56.
Kf2 {[%clk 00:09:47]} {[%emt 00:00:42]} Nc4 {[%clk 00:04:15]} {[%emt 00:00:35]}
57. h4 {[%clk 00:09:14]} {[%emt 00:01:03]} Nd2 {[%clk 00:02:57]} {[%emt
00:01:48]} 58. Nd5+ {[%clk 00:09:35]} {[%emt 00:00:09]} Ke6 {[%clk 00:02:50]}
{[%emt 00:00:36]} 59. Nc3 {[%clk 00:09:55]} {[%emt 00:00:11]} Nc4 {[%clk
00:02:42]} {[%emt 00:00:39]} 60. g3 {[%clk 00:09:29]} {[%emt 00:00:56]} fxg3+
{[%clk 00:02:12]} {[%emt 00:01:00]} 61. Kxg3 {[%clk 00:09:45]} {[%emt
00:00:13]} Nd2 {[%clk 00:01:42]} {[%emt 00:01:00]} 62. g5 {[%clk 00:09:22]}
{[%emt 00:00:53]} Nc4 {[%clk 00:01:05]} {[%emt 00:01:07]} 63. h5 {[%clk
00:08:52]} {[%emt 00:01:00]} Nd6 {[%clk 00:01:09]} {[%emt 00:00:27]} 64. g6
{[%clk 00:05:37]} {[%emt 00:03:44]} h6 {[%clk 00:00:32]} {[%emt 00:01:07]} 65.
Kg4 {[%clk 00:04:42]} {[%emt 00:01:25]} Ne8 {[%clk 00:00:55]} {[%emt 00:00:08]}
66. Nd5 {[%clk 00:04:43]} {[%emt 00:00:28]} Ng7 {[%clk 00:00:58]} {[%emt
00:00:28]} 67. Ne3 {[%clk 00:03:50]} {[%emt 00:01:22]} Ne8 {[%clk 00:01:11]}
{[%emt 00:00:18]} 68. Nf5 {[%clk 00:02:20]} {[%emt 00:02:00]} Nf6+ {[%clk
00:01:39]} {[%emt 00:00:02]} 69. Kf3 {[%clk 00:02:32]} {[%emt 00:00:18]} Nxh5
{[%clk 00:01:28]} {[%emt 00:00:41]} 70. Kg4 {[%clk 00:01:49]} {[%emt 00:01:12]}
Nf6+ {[%clk 00:01:50]} {[%emt 00:00:08]} 71. Kh4 {[%clk 00:02:11]} {[%emt
00:00:06]} Nxe4 {[%clk 00:01:26]} {[%emt 00:00:56]} 72. g7 {[%clk 00:02:28]}
{[%emt 00:00:13]} Nf6 {[%clk 00:01:47]} {[%emt 00:00:10]} 73. Nxh6 {[%clk
00:02:43]} {[%emt 00:00:15]} e4 {[%clk 00:01:40]} {[%emt 00:00:37]} 74. Kg3
{[%clk 00:02:37]} {[%emt 00:00:35]} Nh5+ {[%clk 00:01:17]} {[%emt 00:00:54]} 75.
Kf2 {[%clk 00:02:47]} {[%emt 00:00:19]} Nxg7 {[%clk 00:01:45]} {[%emt
00:00:02]} 76. Ke3 {[%clk 00:03:01]} {[%emt 00:00:16]} Nf5+ {[%clk 00:01:58]}
{[%emt 00:00:17]} 77. Kf4 {[%clk 00:03:07]} {[%emt 00:00:24]} e3 {[%clk
00:02:07]} {[%emt 00:00:22]} 78. Nxf5 {[%clk 00:03:31]} {[%emt 00:00:05]} e2
{[%clk 00:02:24]} {[%emt 00:00:13]} 79. Nd4+ {[%clk 00:04:00]} {[%emt
00:00:02]} 1/2-1/2